{"text_format":"1","workbook":"xlsx","n_sheets":2,"sheets":["Algalapio įvestis","atlyginimų_lapelių_šablonas"],"not_rendered":{"charts":0,"images":0,"macros":1,"external_links":0,"defined_names":7,"comments":0,"pivot_tables":0},"unopened":[],"bounds":{"document_bytes":16777216,"sheet_cells":100000,"rows_first":2000,"rows_last":500,"rows_between":2000,"halvings":0,"cell_chars":16384,"cell_head_chars":4096},"cells_cut":0,"cells_raw":0,"read":"whole","date_system":"1900"}

{"sheet":"Algalapio įvestis","index":0,"n_rows":13,"n_cols":24,"rows_kept":13,"cut":false,"hidden":false,"merged":[]}
[null,"ALGALAPIO SKAIČIUOTUVAS",null,null,null,null,null,null,null,null,"LAIKOTARPIO PABAIGA:","2013-04-08",null,"ĮMONĖS PAVADINIMAS:",null,"„NUOTYKIAI VISIEMS“"]
[]
[null,"ID1","Darbuotojo vardas","Įpr. dirbtų valandų sk.","Atostogų valandos","Ligos valandos","Viršvalandžių valandos","Viršvalandžių koeficientas","Bendras užmokestis","Mokes. ir atskait.","Kiti atskait.","Galutinis užmokestis"," ","Valandinis darbo užmokestis","Mokesčio būsena","Valstybinė priem.","Valstybinis mokestis","Valstybinis pajamų mokestis","Soc. draudimo mokestis","Sveikatos apsaugos mokestis","Iš viso išskaičiuota mokesčių","Draudimo atskaitymas","Kitas reg. atskaitymas","Iš viso reg. atskaitymų"]
[null,1001,"Juozas Budrys",50,5,1,null,null,{"$f":"SUM(Darbuotojai[[#This Row],[Įpr. dirbtų valandų sk.]:[Ligos valandos]])*Darbuotojai[[#This Row],[Valandinis darbo užmokestis]]+Darbuotojai[[#This Row],[Viršvalandžių valandos]]*Darbuotojai[[#This Row],[Viršvalandžių koeficientas]]","v":560},{"$f":"Darbuotojai[[#This Row],[Bendras užmokestis]]*Darbuotojai[[#This Row],[Iš viso išskaičiuota mokesčių]] + Darbuotojai[[#This Row],[Iš viso reg. atskaitymų]]","v":273.08000000000004},20,{"$f":"Darbuotojai[[#This Row],[Bendras užmokestis]]-Darbuotojai[[#This Row],[Mokes. ir atskait.]]-Darbuotojai[[#This Row],[Kiti atskait.]]","v":266.91999999999996},null,10,1,4,2.3E-2,0.28000000000000003,6.3E-2,1.4500000000000001E-2,{"$f":"SUM(Darbuotojai[[#This Row],[Valstybinis mokestis]:[Sveikatos apsaugos mokestis]])","v":0.38050000000000006},20,40,{"$f":"SUM(Darbuotojai[[#This Row],[Draudimo atskaitymas]:[Kitas reg. atskaitymas]])","v":60}]
[null,1002,"Virginijus Daukša",40,null,null,null,null,{"$f":"SUM(Darbuotojai[[#This Row],[Įpr. dirbtų valandų sk.]:[Ligos valandos]])*Darbuotojai[[#This Row],[Valandinis darbo užmokestis]]+Darbuotojai[[#This Row],[Viršvalandžių valandos]]*Darbuotojai[[#This Row],[Viršvalandžių koeficientas]]","v":320},{"$f":"Darbuotojai[[#This Row],[Bendras užmokestis]]*Darbuotojai[[#This Row],[Iš viso išskaičiuota mokesčių]] + Darbuotojai[[#This Row],[Iš viso reg. atskaitymų]]","v":131.76000000000002},null,{"$f":"Darbuotojai[[#This Row],[Bendras užmokestis]]-Darbuotojai[[#This Row],[Mokes. ir atskait.]]-Darbuotojai[[#This Row],[Kiti atskait.]]","v":188.23999999999998},null,8,1,1,2.3E-2,0.28000000000000003,6.3E-2,1.4500000000000001E-2,{"$f":"SUM(Darbuotojai[[#This Row],[Valstybinis mokestis]:[Sveikatos apsaugos mokestis]])","v":0.38050000000000006},0,10,{"$f":"SUM(Darbuotojai[[#This Row],[Draudimo atskaitymas]:[Kitas reg. atskaitymas]])","v":10}]
[null,1003,"Audra Jasaitytė",35,3,null,null,null,{"$f":"SUM(Darbuotojai[[#This Row],[Įpr. dirbtų valandų sk.]:[Ligos valandos]])*Darbuotojai[[#This Row],[Valandinis darbo užmokestis]]+Darbuotojai[[#This Row],[Viršvalandžių valandos]]*Darbuotojai[[#This Row],[Viršvalandžių koeficientas]]","v":532},{"$f":"Darbuotojai[[#This Row],[Bendras užmokestis]]*Darbuotojai[[#This Row],[Iš viso išskaičiuota mokesčių]] + Darbuotojai[[#This Row],[Iš viso reg. atskaitymų]]","v":240.42600000000004},null,{"$f":"Darbuotojai[[#This Row],[Bendras užmokestis]]-Darbuotojai[[#This Row],[Mokes. ir atskait.]]-Darbuotojai[[#This Row],[Kiti atskait.]]","v":291.57399999999996},null,14,1,3,2.3E-2,0.28000000000000003,6.3E-2,1.4500000000000001E-2,{"$f":"SUM(Darbuotojai[[#This Row],[Valstybinis mokestis]:[Sveikatos apsaugos mokestis]])","v":0.38050000000000006},18,20,{"$f":"SUM(Darbuotojai[[#This Row],[Draudimo atskaitymas]:[Kitas reg. atskaitymas]])","v":38}]
[null,1008,"Petras Stankevičius",50,5,1,null,null,{"$f":"SUM(Darbuotojai[[#This Row],[Įpr. dirbtų valandų sk.]:[Ligos valandos]])*Darbuotojai[[#This Row],[Valandinis darbo užmokestis]]+Darbuotojai[[#This Row],[Viršvalandžių valandos]]*Darbuotojai[[#This Row],[Viršvalandžių koeficientas]]","v":1120},{"$f":"Darbuotojai[[#This Row],[Bendras užmokestis]]*Darbuotojai[[#This Row],[Iš viso išskaičiuota mokesčių]] + Darbuotojai[[#This Row],[Iš viso reg. atskaitymų]]","v":441.16000000000008},null,{"$f":"Darbuotojai[[#This Row],[Bendras užmokestis]]-Darbuotojai[[#This Row],[Mokes. ir atskait.]]-Darbuotojai[[#This Row],[Kiti atskait.]]","v":678.83999999999992},null,20,1,0,2.3E-2,0.28000000000000003,6.3E-2,1.4500000000000001E-2,{"$f":"SUM(Darbuotojai[[#This Row],[Valstybinis mokestis]:[Sveikatos apsaugos mokestis]])","v":0.38050000000000006},15,null,{"$f":"SUM(Darbuotojai[[#This Row],[Draudimo atskaitymas]:[Kitas reg. atskaitymas]])","v":15}]
[null,1011,"Ligita Žukauskienė",40,null,null,2,15,{"$f":"SUM(Darbuotojai[[#This Row],[Įpr. dirbtų valandų sk.]:[Ligos valandos]])*Darbuotojai[[#This Row],[Valandinis darbo užmokestis]]+Darbuotojai[[#This Row],[Viršvalandžių valandos]]*Darbuotojai[[#This Row],[Viršvalandžių koeficientas]]","v":430},{"$f":"Darbuotojai[[#This Row],[Bendras užmokestis]]*Darbuotojai[[#This Row],[Iš viso išskaičiuota mokesčių]] + Darbuotojai[[#This Row],[Iš viso reg. atskaitymų]]","v":223.61500000000004},null,{"$f":"Darbuotojai[[#This Row],[Bendras užmokestis]]-Darbuotojai[[#This Row],[Mokes. ir atskait.]]-Darbuotojai[[#This Row],[Kiti atskait.]]","v":206.38499999999996},null,10,1,0,2.3E-2,0.28000000000000003,6.3E-2,1.4500000000000001E-2,{"$f":"SUM(Darbuotojai[[#This Row],[Valstybinis mokestis]:[Sveikatos apsaugos mokestis]])","v":0.38050000000000006},20,40,{"$f":"SUM(Darbuotojai[[#This Row],[Draudimo atskaitymas]:[Kitas reg. atskaitymas]])","v":60}]
[null,1012,"Tomas Navickas",40,5,1,null,null,{"$f":"SUM(Darbuotojai[[#This Row],[Įpr. dirbtų valandų sk.]:[Ligos valandos]])*Darbuotojai[[#This Row],[Valandinis darbo užmokestis]]+Darbuotojai[[#This Row],[Viršvalandžių valandos]]*Darbuotojai[[#This Row],[Viršvalandžių koeficientas]]","v":552},{"$f":"Darbuotojai[[#This Row],[Bendras užmokestis]]*Darbuotojai[[#This Row],[Iš viso išskaičiuota mokesčių]] + Darbuotojai[[#This Row],[Iš viso reg. atskaitymų]]","v":270.03600000000006},null,{"$f":"Darbuotojai[[#This Row],[Bendras užmokestis]]-Darbuotojai[[#This Row],[Mokes. ir atskait.]]-Darbuotojai[[#This Row],[Kiti atskait.]]","v":281.96399999999994},null,12,1,4,2.3E-2,0.28000000000000003,6.3E-2,1.4500000000000001E-2,{"$f":"SUM(Darbuotojai[[#This Row],[Valstybinis mokestis]:[Sveikatos apsaugos mokestis]])","v":0.38050000000000006},20,40,{"$f":"SUM(Darbuotojai[[#This Row],[Draudimo atskaitymas]:[Kitas reg. atskaitymas]])","v":60}]
[null,1025,"Jovita Juknaitė",36,null,2,1,18,{"$f":"SUM(Darbuotojai[[#This Row],[Įpr. dirbtų valandų sk.]:[Ligos valandos]])*Darbuotojai[[#This Row],[Valandinis darbo užmokestis]]+Darbuotojai[[#This Row],[Viršvalandžių valandos]]*Darbuotojai[[#This Row],[Viršvalandžių koeficientas]]","v":474},{"$f":"Darbuotojai[[#This Row],[Bendras užmokestis]]*Darbuotojai[[#This Row],[Iš viso išskaičiuota mokesčių]] + Darbuotojai[[#This Row],[Iš viso reg. atskaitymų]]","v":225.35700000000003},25,{"$f":"Darbuotojai[[#This Row],[Bendras užmokestis]]-Darbuotojai[[#This Row],[Mokes. ir atskait.]]-Darbuotojai[[#This Row],[Kiti atskait.]]","v":223.64299999999997},null,12,1,2,2.3E-2,0.28000000000000003,6.3E-2,1.4500000000000001E-2,{"$f":"SUM(Darbuotojai[[#This Row],[Valstybinis mokestis]:[Sveikatos apsaugos mokestis]])","v":0.38050000000000006},25,20,{"$f":"SUM(Darbuotojai[[#This Row],[Draudimo atskaitymas]:[Kitas reg. atskaitymas]])","v":45}]
[null,1032,"Teresė Rakauskienė",40,5,1,null,null,{"$f":"SUM(Darbuotojai[[#This Row],[Įpr. dirbtų valandų sk.]:[Ligos valandos]])*Darbuotojai[[#This Row],[Valandinis darbo užmokestis]]+Darbuotojai[[#This Row],[Viršvalandžių valandos]]*Darbuotojai[[#This Row],[Viršvalandžių koeficientas]]","v":460},{"$f":"Darbuotojai[[#This Row],[Bendras užmokestis]]*Darbuotojai[[#This Row],[Iš viso išskaičiuota mokesčių]] + Darbuotojai[[#This Row],[Iš viso reg. atskaitymų]]","v":175.03000000000003},50,{"$f":"Darbuotojai[[#This Row],[Bendras užmokestis]]-Darbuotojai[[#This Row],[Mokes. ir atskait.]]-Darbuotojai[[#This Row],[Kiti atskait.]]","v":234.96999999999997},null,10,1,3,2.3E-2,0.28000000000000003,6.3E-2,1.4500000000000001E-2,{"$f":"SUM(Darbuotojai[[#This Row],[Valstybinis mokestis]:[Sveikatos apsaugos mokestis]])","v":0.38050000000000006},null,null,{"$f":"SUM(Darbuotojai[[#This Row],[Draudimo atskaitymas]:[Kitas reg. atskaitymas]])","v":0}]
[null,1049,"Jurgis Mikalauskas",40,1,null,null,null,{"$f":"SUM(Darbuotojai[[#This Row],[Įpr. dirbtų valandų sk.]:[Ligos valandos]])*Darbuotojai[[#This Row],[Valandinis darbo užmokestis]]+Darbuotojai[[#This Row],[Viršvalandžių valandos]]*Darbuotojai[[#This Row],[Viršvalandžių koeficientas]]","v":615},{"$f":"Darbuotojai[[#This Row],[Bendras užmokestis]]*Darbuotojai[[#This Row],[Iš viso išskaičiuota mokesčių]] + Darbuotojai[[#This Row],[Iš viso reg. atskaitymų]]","v":259.00750000000005},23,{"$f":"Darbuotojai[[#This Row],[Bendras užmokestis]]-Darbuotojai[[#This Row],[Mokes. ir atskait.]]-Darbuotojai[[#This Row],[Kiti atskait.]]","v":332.99249999999995},null,15,1,2,2.3E-2,0.28000000000000003,6.3E-2,1.4500000000000001E-2,{"$f":"SUM(Darbuotojai[[#This Row],[Valstybinis mokestis]:[Sveikatos apsaugos mokestis]])","v":0.38050000000000006},25,null,{"$f":"SUM(Darbuotojai[[#This Row],[Draudimo atskaitymas]:[Kitas reg. atskaitymas]])","v":25}]
[null,"Bendrosios sumos",{"$f":"SUBTOTAL(103,Darbuotojai[Darbuotojo vardas])","v":9},{"$f":"SUBTOTAL(109,Darbuotojai[Įpr. dirbtų valandų sk.])","v":371},{"$f":"SUBTOTAL(109,Darbuotojai[Atostogų valandos])","v":24},{"$f":"SUBTOTAL(109,Darbuotojai[Ligos valandos])","v":6},{"$f":"SUBTOTAL(109,Darbuotojai[Viršvalandžių valandos])","v":3},null,{"$f":"SUBTOTAL(109,Darbuotojai[Bendras užmokestis])","v":5063},{"$f":"SUBTOTAL(109,Darbuotojai[Mokes. ir atskait.])","v":2239.4715000000001},{"$f":"SUBTOTAL(109,Darbuotojai[Kiti atskait.])","v":118},{"$f":"SUBTOTAL(109,Darbuotojai[Galutinis užmokestis])","v":2705.5284999999994},null,null,null,null,null,null,null,null,null,{"$f":"SUBTOTAL(109,Darbuotojai[Draudimo atskaitymas])","v":143},{"$f":"SUBTOTAL(109,Darbuotojai[Kitas reg. atskaitymas])","v":170},{"$f":"SUBTOTAL(109,Darbuotojai[Iš viso reg. atskaitymų])","v":313}]

{"sheet":"atlyginimų_lapelių_šablonas","index":1,"n_rows":47,"n_cols":13,"rows_kept":47,"cut":false,"hidden":true,"merged":[[2,7,2,8],[14,7,14,8],[26,7,26,8],[38,7,38,8],[38,11,38,12],[26,11,26,12],[14,11,14,12],[2,11,2,12],[2,3,2,4],[14,3,14,4],[26,3,26,4],[38,3,38,4],[44,2,44,3],[8,2,8,3],[9,2,9,3],[45,2,45,3],[32,2,32,3],[33,2,33,3],[20,2,20,3],[21,2,21,3]]}
[]
[null,null,{"$f":"ĮmonėsPavadinimas","v":"„NUOTYKIAI VISIEMS“"}]
[null,null,"LAIKOTARPIS",{"$f":"LaikotarpioPabaiga","v":"2013-04-08"},null,null,"VARDAS",{"$f":"IFERROR(INDEX(Darbuotojai[Darbuotojo vardas],Lapelis),\"\")","v":"Juozas Budrys"},null,null,"DARBUOTOJO ID",{"$f":"IFERROR(INDEX(Darbuotojai[ID1],Lapelis),\"\")","v":1001}]
[null,null,"Mokesčio būsena",null,{"$f":"IFERROR(INDEX(Darbuotojai[Mokesčio būsena],Lapelis),\"\")","v":1},null,"Valstybinė priemoka (nuo W-4)",null,{"$f":"IFERROR(INDEX(Darbuotojai[Valstybinė priem.],Lapelis),\"\")","v":4},null,"Dirbta valandų",null,{"$f":"IFERROR(INDEX(Darbuotojai[Įpr. dirbtų valandų sk.],Lapelis),\"\")","v":50}]
[null,null,"Valandos įkainis",null,{"$f":"IFERROR(INDEX(Darbuotojai[Valandinis darbo užmokestis],Lapelis),\"\")","v":10},null,"Viršvalandžių koeficientas",null,{"$f":"IFERROR(INDEX(Darbuotojai[Viršvalandžių koeficientas],Lapelis),\"\")","v":0},null,"Ligos valandos",null,{"$f":"IFERROR(INDEX(Darbuotojai[Ligos valandos],Lapelis),\"\")","v":1}]
[null,null,"Socialinio draudimo mokestis",null,{"$f":"IFERROR(INDEX(Darbuotojai[Soc. draudimo mokestis],Lapelis)  *  INDEX(Darbuotojai[Bendras užmokestis],Lapelis),\"\")","v":35.28},null,"Valstybinis pajamų mokestis ",null,{"$f":"IFERROR(INDEX(Darbuotojai[Valstybinis pajamų mokestis],Lapelis)  *  INDEX(Darbuotojai[Bendras užmokestis],Lapelis),\"\")","v":156.80000000000001},null,"Atostogų valandos",null,{"$f":"IFERROR(INDEX(Darbuotojai[Atostogų valandos],Lapelis),\"\")","v":5}]
[null,null,"Sveikatos apsaugos mokestis ",null,{"$f":"IFERROR(INDEX(Darbuotojai[Sveikatos apsaugos mokestis],Lapelis)  *  INDEX(Darbuotojai[Bendras užmokestis],Lapelis),\"\")","v":8.120000000000001},null,"Valstybinis mokestis ",null,{"$f":"IFERROR(INDEX(Darbuotojai[Valstybinis mokestis],Lapelis)  *  INDEX(Darbuotojai[Bendras užmokestis],Lapelis),\"\")","v":12.879999999999999},null,"Viršvalandžių valandos",null,{"$f":"IFERROR(INDEX(Darbuotojai[Viršvalandžių valandos],Lapelis),\"\")","v":0}]
[null,null,"Draudimo atskaitymas",null,{"$f":"IFERROR(INDEX(Darbuotojai[Draudimo atskaitymas],Lapelis),\"\")","v":20},null,"Kitas reguliarus atskaitymas",null,{"$f":"IFERROR(INDEX(Darbuotojai[Kitas reg. atskaitymas],Lapelis),\"\")","v":40},null,"Bendras užmokestis",null,{"$f":"IFERROR(INDEX(Darbuotojai[Bendras užmokestis],Lapelis),\"\")","v":560}]
[null,null,"Iš viso mokesčių ir",null,{"$f":"IFERROR(INDEX(Darbuotojai[Mokes. ir atskait.],Lapelis),\"\")","v":273.08000000000004},null,"Kitas atskaitymas",null,{"$f":"IFERROR(INDEX(Darbuotojai[Kiti atskait.],Lapelis),\"\")","v":20},null,"Iš viso mokesčių ir atskaitymų ",null,{"$f":"IFERROR(INDEX(Darbuotojai[Mokes. ir atskait.],Lapelis)  +  INDEX(Darbuotojai[Kiti atskait.],Lapelis),\"\")","v":293.08000000000004}]
[null,null,"reguliarių atskaitymų "]
[null,null,null,null,null,null,null,null,null,null,"GALUTINIS UŽMOKESTIS",null,{"$f":"IFERROR(INDEX(Darbuotojai[Galutinis užmokestis],Lapelis),\"\")","v":266.91999999999996}]
[]
[]
[null,null,{"$f":"ĮmonėsPavadinimas","v":"„NUOTYKIAI VISIEMS“"}]
[null,null,"LAIKOTARPIS",{"$f":"LaikotarpioPabaiga","v":"2013-04-08"},null,null,"VARDAS",{"$f":"IFERROR(INDEX(Darbuotojai[Darbuotojo vardas],Lapelis),\"\")","v":"Virginijus Daukša"},null,null,"DARBUOTOJO ID",{"$f":"IFERROR(INDEX(Darbuotojai[ID1],Lapelis),\"\")","v":1002}]
[null,null,"Mokesčio būsena",null,{"$f":"IFERROR(INDEX(Darbuotojai[Mokesčio būsena],Lapelis),\"\")","v":1},null,"Valstybinė priemoka (nuo W-4)",null,{"$f":"IFERROR(INDEX(Darbuotojai[Valstybinė priem.],Lapelis),\"\")","v":1},null,"Dirbta valandų",null,{"$f":"IFERROR(INDEX(Darbuotojai[Įpr. dirbtų valandų sk.],Lapelis),\"\")","v":40}]
[null,null,"Valandos įkainis",null,{"$f":"IFERROR(INDEX(Darbuotojai[Valandinis darbo užmokestis],Lapelis),\"\")","v":8},null,"Viršvalandžių koeficientas",null,{"$f":"IFERROR(INDEX(Darbuotojai[Viršvalandžių koeficientas],Lapelis),\"\")","v":0},null,"Ligos valandos",null,{"$f":"IFERROR(INDEX(Darbuotojai[Ligos valandos],Lapelis),\"\")","v":0}]
[null,null,"Socialinio draudimo mokestis",null,{"$f":"IFERROR(INDEX(Darbuotojai[Soc. draudimo mokestis],Lapelis)  *  INDEX(Darbuotojai[Bendras užmokestis],Lapelis),\"\")","v":20.16},null,"Valstybinis pajamų mokestis ",null,{"$f":"IFERROR(INDEX(Darbuotojai[Valstybinis pajamų mokestis],Lapelis)  *  INDEX(Darbuotojai[Bendras užmokestis],Lapelis),\"\")","v":89.600000000000009},null,"Atostogų valandos",null,{"$f":"IFERROR(INDEX(Darbuotojai[Atostogų valandos],Lapelis),\"\")","v":0}]
[null,null,"Sveikatos apsaugos mokestis ",null,{"$f":"IFERROR(INDEX(Darbuotojai[Sveikatos apsaugos mokestis],Lapelis)  *  INDEX(Darbuotojai[Bendras užmokestis],Lapelis),\"\")","v":4.6400000000000006},null,"Valstybinis mokestis ",null,{"$f":"IFERROR(INDEX(Darbuotojai[Valstybinis mokestis],Lapelis)  *  INDEX(Darbuotojai[Bendras užmokestis],Lapelis),\"\")","v":7.3599999999999994},null,"Viršvalandžių valandos",null,{"$f":"IFERROR(INDEX(Darbuotojai[Viršvalandžių valandos],Lapelis),\"\")","v":0}]
[null,null,"Draudimo atskaitymas",null,{"$f":"IFERROR(INDEX(Darbuotojai[Draudimo atskaitymas],Lapelis),\"\")","v":0},null,"Kitas reguliarus atskaitymas",null,{"$f":"IFERROR(INDEX(Darbuotojai[Kitas reg. atskaitymas],Lapelis),\"\")","v":10},null,"Bendras užmokestis",null,{"$f":"IFERROR(INDEX(Darbuotojai[Bendras užmokestis],Lapelis),\"\")","v":320}]
[null,null,"Iš viso mokesčių ir",null,{"$f":"IFERROR(INDEX(Darbuotojai[Mokes. ir atskait.],Lapelis),\"\")","v":131.76000000000002},null,"Kitas atskaitymas",null,{"$f":"IFERROR(INDEX(Darbuotojai[Kiti atskait.],Lapelis),\"\")","v":0},null,"Iš viso mokesčių ir atskaitymų ",null,{"$f":"IFERROR(INDEX(Darbuotojai[Mokes. ir atskait.],Lapelis)  +  INDEX(Darbuotojai[Kiti atskait.],Lapelis),\"\")","v":131.76000000000002}]
[null,null,"reguliarių atskaitymų "]
[null,null,null,null,null,null,null,null,null,null,"GALUTINIS UŽMOKESTIS",null,{"$f":"IFERROR(INDEX(Darbuotojai[Galutinis užmokestis],Lapelis),\"\")","v":188.23999999999998}]
[]
[]
[null,null,{"$f":"ĮmonėsPavadinimas","v":"„NUOTYKIAI VISIEMS“"}]
[null,null,"LAIKOTARPIS",{"$f":"LaikotarpioPabaiga","v":"2013-04-08"},null,null,"VARDAS",{"$f":"IFERROR(INDEX(Darbuotojai[Darbuotojo vardas],Lapelis),\"\")","v":"Audra Jasaitytė"},null,null,"DARBUOTOJO ID",{"$f":"IFERROR(INDEX(Darbuotojai[ID1],Lapelis),\"\")","v":1003}]
[null,null,"Mokesčio būsena",null,{"$f":"IFERROR(INDEX(Darbuotojai[Mokesčio būsena],Lapelis),\"\")","v":1},null,"Valstybinė priemoka (nuo W-4)",null,{"$f":"IFERROR(INDEX(Darbuotojai[Valstybinė priem.],Lapelis),\"\")","v":3},null,"Dirbta valandų",null,{"$f":"IFERROR(INDEX(Darbuotojai[Įpr. dirbtų valandų sk.],Lapelis),\"\")","v":35}]
[null,null,"Valandos įkainis",null,{"$f":"IFERROR(INDEX(Darbuotojai[Valandinis darbo užmokestis],Lapelis),\"\")","v":14},null,"Viršvalandžių koeficientas",null,{"$f":"IFERROR(INDEX(Darbuotojai[Viršvalandžių koeficientas],Lapelis),\"\")","v":0},null,"Ligos valandos",null,{"$f":"IFERROR(INDEX(Darbuotojai[Ligos valandos],Lapelis),\"\")","v":0}]
[null,null,"Socialinio draudimo mokestis",null,{"$f":"IFERROR(INDEX(Darbuotojai[Soc. draudimo mokestis],Lapelis)  *  INDEX(Darbuotojai[Bendras užmokestis],Lapelis),\"\")","v":33.515999999999998},null,"Valstybinis pajamų mokestis ",null,{"$f":"IFERROR(INDEX(Darbuotojai[Valstybinis pajamų mokestis],Lapelis)  *  INDEX(Darbuotojai[Bendras užmokestis],Lapelis),\"\")","v":148.96},null,"Atostogų valandos",null,{"$f":"IFERROR(INDEX(Darbuotojai[Atostogų valandos],Lapelis),\"\")","v":3}]
[null,null,"Sveikatos apsaugos mokestis ",null,{"$f":"IFERROR(INDEX(Darbuotojai[Sveikatos apsaugos mokestis],Lapelis)  *  INDEX(Darbuotojai[Bendras užmokestis],Lapelis),\"\")","v":7.7140000000000004},null,"Valstybinis mokestis ",null,{"$f":"IFERROR(INDEX(Darbuotojai[Valstybinis mokestis],Lapelis)  *  INDEX(Darbuotojai[Bendras užmokestis],Lapelis),\"\")","v":12.236000000000001},null,"Viršvalandžių valandos",null,{"$f":"IFERROR(INDEX(Darbuotojai[Viršvalandžių valandos],Lapelis),\"\")","v":0}]
[null,null,"Draudimo atskaitymas",null,{"$f":"IFERROR(INDEX(Darbuotojai[Draudimo atskaitymas],Lapelis),\"\")","v":18},null,"Kitas reguliarus atskaitymas",null,{"$f":"IFERROR(INDEX(Darbuotojai[Kitas reg. atskaitymas],Lapelis),\"\")","v":20},null,"Bendras užmokestis",null,{"$f":"IFERROR(INDEX(Darbuotojai[Bendras užmokestis],Lapelis),\"\")","v":532}]
[null,null,"Iš viso mokesčių ir",null,{"$f":"IFERROR(INDEX(Darbuotojai[Mokes. ir atskait.],Lapelis),\"\")","v":240.42600000000004},null,"Kitas atskaitymas",null,{"$f":"IFERROR(INDEX(Darbuotojai[Kiti atskait.],Lapelis),\"\")","v":0},null,"Iš viso mokesčių ir atskaitymų ",null,{"$f":"IFERROR(INDEX(Darbuotojai[Mokes. ir atskait.],Lapelis)  +  INDEX(Darbuotojai[Kiti atskait.],Lapelis),\"\")","v":240.42600000000004}]
[null,null,"reguliarių atskaitymų "]
[null,null,null,null,null,null,null,null,null,null,"GALUTINIS UŽMOKESTIS",null,{"$f":"IFERROR(INDEX(Darbuotojai[Galutinis užmokestis],Lapelis),\"\")","v":291.57399999999996}]
[]
[]
[null,null,{"$f":"ĮmonėsPavadinimas","v":"„NUOTYKIAI VISIEMS“"}]
[null,null,"LAIKOTARPIS",{"$f":"LaikotarpioPabaiga","v":"2013-04-08"},null,null,"VARDAS",{"$f":"IFERROR(INDEX(Darbuotojai[Darbuotojo vardas],Lapelis),\"\")","v":"Petras Stankevičius"},null,null,"DARBUOTOJO ID",{"$f":"IFERROR(INDEX(Darbuotojai[ID1],Lapelis),\"\")","v":1008}]
[null,null,"Mokesčio būsena",null,{"$f":"IFERROR(INDEX(Darbuotojai[Mokesčio būsena],Lapelis),\"\")","v":1},null,"Valstybinė priemoka (nuo W-4)",null,{"$f":"IFERROR(INDEX(Darbuotojai[Valstybinė priem.],Lapelis),\"\")","v":0},null,"Dirbta valandų",null,{"$f":"IFERROR(INDEX(Darbuotojai[Įpr. dirbtų valandų sk.],Lapelis),\"\")","v":50}]
[null,null,"Valandos įkainis",null,{"$f":"IFERROR(INDEX(Darbuotojai[Valandinis darbo užmokestis],Lapelis),\"\")","v":20},null,"Viršvalandžių koeficientas",null,{"$f":"IFERROR(INDEX(Darbuotojai[Viršvalandžių koeficientas],Lapelis),\"\")","v":0},null,"Ligos valandos",null,{"$f":"IFERROR(INDEX(Darbuotojai[Ligos valandos],Lapelis),\"\")","v":1}]
[null,null,"Socialinio draudimo mokestis",null,{"$f":"IFERROR(INDEX(Darbuotojai[Soc. draudimo mokestis],Lapelis)  *  INDEX(Darbuotojai[Bendras užmokestis],Lapelis),\"\")","v":70.56},null,"Valstybinis pajamų mokestis ",null,{"$f":"IFERROR(INDEX(Darbuotojai[Valstybinis pajamų mokestis],Lapelis)  *  INDEX(Darbuotojai[Bendras užmokestis],Lapelis),\"\")","v":313.60000000000002},null,"Atostogų valandos",null,{"$f":"IFERROR(INDEX(Darbuotojai[Atostogų valandos],Lapelis),\"\")","v":5}]
[null,null,"Sveikatos apsaugos mokestis ",null,{"$f":"IFERROR(INDEX(Darbuotojai[Sveikatos apsaugos mokestis],Lapelis)  *  INDEX(Darbuotojai[Bendras užmokestis],Lapelis),\"\")","v":16.240000000000002},null,"Valstybinis mokestis ",null,{"$f":"IFERROR(INDEX(Darbuotojai[Valstybinis mokestis],Lapelis)  *  INDEX(Darbuotojai[Bendras užmokestis],Lapelis),\"\")","v":25.759999999999998},null,"Viršvalandžių valandos",null,{"$f":"IFERROR(INDEX(Darbuotojai[Viršvalandžių valandos],Lapelis),\"\")","v":0}]
[null,null,"Draudimo atskaitymas",null,{"$f":"IFERROR(INDEX(Darbuotojai[Draudimo atskaitymas],Lapelis),\"\")","v":15},null,"Kitas reguliarus atskaitymas",null,{"$f":"IFERROR(INDEX(Darbuotojai[Kitas reg. atskaitymas],Lapelis),\"\")","v":0},null,"Bendras užmokestis",null,{"$f":"IFERROR(INDEX(Darbuotojai[Bendras užmokestis],Lapelis),\"\")","v":1120}]
[null,null,"Iš viso mokesčių ir",null,{"$f":"IFERROR(INDEX(Darbuotojai[Mokes. ir atskait.],Lapelis),\"\")","v":441.16000000000008},null,"Kitas atskaitymas",null,{"$f":"IFERROR(INDEX(Darbuotojai[Kiti atskait.],Lapelis),\"\")","v":0},null,"Iš viso mokesčių ir atskaitymų ",null,{"$f":"IFERROR(INDEX(Darbuotojai[Mokes. ir atskait.],Lapelis)  +  INDEX(Darbuotojai[Kiti atskait.],Lapelis),\"\")","v":441.16000000000008}]
[null,null,"reguliarių atskaitymų "]
[null,null,null,null,null,null,null,null,null,null,"GALUTINIS UŽMOKESTIS",null,{"$f":"IFERROR(INDEX(Darbuotojai[Galutinis užmokestis],Lapelis),\"\")","v":678.83999999999992}]